[Event "CZE-ch Youth G10-G12-G14 2022"]
[Site "Luhacovice"]
[Date "2022.03.16"]
[Round "6.23"]
[White "Nova Anezka"]
[Black "Mojzisova Barbora"]
[Result "1-0"]
[ECO "C44"]
[WhiteElo "1111"]
[BlackElo "1089"]
[Annotator "NA"]
[PlyCount "79"]
[EventDate "2022.03.12"]
[EventType "swiss"]
[EventCountry "CZE"]
[SourceTitle "playchess.com"]
[Source "ChessBase"]
[SourceQuality "1"]
[TimeControl "40/5400+30:1800+30"]

1. e4 {[%emt 0:00:06]} e5 {[%emt 0:00:15]} 2. Nf3 {[%emt 0:00:14]} Nc6 {[%emt 0:00:40]} 3. d4 {[%emt 0:00:12]} exd4 {[%emt 0:00:56]} 4. Bc4 {[%emt 0:00:10]} Bc5 {[%emt 0:01:12]} 5. c3 {[%emt 0:00:50]} dxc3 {[%emt 0:01:53]} 6. Bxf7+ {[%emt 0:00:30]} Kxf7 {[%emt 0:02:11]} 7. Qd5+ {[%emt 0:00:15]} Ke8 {[%emt 0:01:51]} 8. Qh5+ {[%emt 0:00:29]} g6 {[%emt 0:02:56]} 9. Qxc5 {[%emt 0:00:38]} Qe7 {[%emt 0:05:54]} 10. Qxe7+ {[%emt 0:03:19]} Ngxe7 {[%emt 0:00:42]} 11. bxc3 {[%emt 0:03:37]} d6 {[%emt 0:01:55]} 12. O-O {[%emt 0:03:41]} Bg4 {[%emt 0:03:52]} 13. Nbd2 {[%emt 0:05:28]} h6 {[%emt 0:06:16]} 14. h3 {[%emt 0:11:55]} Be6 {[%emt 0:05:16]} 15. Nd4 {[%emt 0:10:18]} Nxd4 {[%emt 0:04:53]} 16. cxd4 {[%emt 0:00:45]} d5 {[%emt 0:03:54]} 17. Re1 {[%emt 0:05:05]} Kd7 {[%emt 0:05:32]} 18. Bb2 {[%emt 0:06:41]} Rae8 {[%emt 0:03:07]} 19. Nf3 {[%emt 0:05:16]} Nc6 {[%emt 0:05:45]} 20. Rad1 {[%emt 0:08:26]} dxe4 {[%emt 0:04:50]} 21. d5 {[%emt 0:01:13]} exf3 {[%emt 0:03:38]} 22. dxe6+ {[%emt 0:01:27]} Kc8 {[%emt 0:00:57]} 23. Bxh8 {[%emt 0:00:27]} Rxh8 {[%emt 0:00:33]} 24. gxf3 {[%emt 0:02:17]} Rd8 {[%emt 0:03:57]} 25. f4 {[%emt 0:04:45]} h5 {[%emt 0:03:04]} 26. Kg2 {[%emt 0:01:06]} Ne7 {[%emt 0:01:59]} 27. Rc1 {[%emt 0:02:57]} c6 {[%emt 0:02:30]} 28. Rc5 {[%emt 0:01:40]} b6 {[%emt 0:02:33]} 29. Rg5 {[%emt 0:00:47]} Rd6 {[%emt 0:02:09]} 30. f5 {[%emt 0:03:42]} gxf5 {[%emt 0:01:39]} 31. Rxh5 {[%emt 0:01:10]} Kd8 {[%emt 0:00:57]} 32. Rh8+ {[%emt 0:00:35]} Kc7 {[%emt 0:00:32]} 33. Re8 {[%emt 0:00:46]} Nd5 {[%emt 0:02:42]} 34. e7 {[%emt 0:00:34]} Nf4+ {[%emt 0:01:24]} 35. Kh2 {[%emt 0:00:57]} Rh6 {[%emt 0:00:43]} 36. Kg3 {[%emt 0:02:48]} Nh5+ {[%emt 0:00:48]} 37. Kf3 {[%emt 0:00:38]} Nf6 {[%emt 0:00:49]} 38. Rf8 {[%emt 0:00:22]} Rxh3+ {[%emt 0:00:51]} 39. Kg2 {[%emt 0:00:20]} Rh6 {[%emt 0:01:19]} 40. Rxf6 {[%emt 0:00:36]} 1-0

[Event "CZE-ch Youth G10-G12-G14 2022"]
[Site "Luhacovice"]
[Date "2022.03.16"]
[Round "6.24"]
[White "Havelkova Kamila"]
[Black "Rezacova Julie"]
[Result "0-1"]
[ECO "C56"]
[WhiteElo "1092"]
[BlackElo "1063"]
[Annotator "NA"]
[PlyCount "63"]
[EventDate "2022.03.12"]
[EventType "swiss"]
[EventCountry "CZE"]
[SourceTitle "playchess.com"]
[Source "ChessBase"]
[SourceQuality "1"]
[TimeControl "40/5400+30:1800+30"]

1. e4 {[%emt 0:00:11]} e5 {[%emt 0:00:06]} 2. Nf3 {[%emt 0:00:28]} Nc6 {[%emt 0:00:13]} 3. Bc4 {[%emt 0:00:44]} Nf6 {[%emt 0:00:13]} 4. d4 {[%emt 0:00:35]} d6 {[%emt 0:00:35]} 5. Bg5 {[%emt 0:02:12]} Be7 {[%emt 0:01:03]} 6. Nc3 {[%emt 0:02:06]} O-O {[%emt 0:00:12]} 7. O-O {[%emt 0:01:03]} Bg4 {[%emt 0:00:11]} 8. Be2 {[%emt 0:02:30]} h6 {[%emt 0:01:17]} 9. Bh4 {[%emt 0:01:41]} Bxf3 {[%emt 0:00:30]} 10. Bxf3 {[%emt 0:01:49]} Nxd4 {[%emt 0:00:08]} 11. Re1 {[%emt 0:02:10]} Qd7 {[%emt 0:01:37]} 12. Nd5 {[%emt 0:04:34]} Nxd5 {[%emt 0:00:33]} 13. Bg4 {[%emt 0:01:40]} Qd8 {[%emt 0:00:33]} 14. c3 {[%emt 0:06:01]} Bxh4 {[%emt 0:00:26]} 15. exd5 {[%emt 0:01:23]} Qf6 {[%emt 0:01:25]} 16. g3 {[%emt 0:01:05]} Nf5 {[%emt 0:02:05]} 17. Bxf5 {[%emt 0:03:26]} Qxf5 {[%emt 0:00:32]} 18. gxh4 {[%emt 0:00:53]} c6 {[%emt 0:00:33]} 19. dxc6 {[%emt 0:00:58]} bxc6 {[%emt 0:00:15]} 20. Qxd6 {[%emt 0:00:46]} Rad8 {[%emt 0:00:19]} 21. Qxc6 {[%emt 0:01:18]} Rd2 {[%emt 0:00:52]} 22. Rf1 {[%emt 0:03:15]} Qg4+ {[%emt 0:00:28]} 23. Kh1 {[%emt 0:00:26]} Qxh4 {[%emt 0:00:29]} 24. c4 {[%emt 0:03:12]} a6 {[%emt 0:00:30]} 25. c5 {[%emt 0:00:38]} Rd3 {[%emt 0:01:00]} 26. Kg2 {[%emt 0:02:20]} Qh3+ {[%emt 0:00:33]} 27. Kh1 {[%emt 0:00:45]} Rf3 {[%emt 0:00:28]} 28. Qb7 {[%emt 0:03:38]} Qg4 {[%emt 0:00:35]} 29. c6 {[%emt 0:00:48]} e4 {[%emt 0:01:32]} 30. Rac1 {[%emt 0:01:08]} Rh3 {[%emt 0:00:16]} 31. c7 {[%emt 0:01:11]} Qf4 {[%emt 0:00:18]} 32. Kg2 {[%emt 0:02:02]} 0-1

[Event "CZE-ch Youth G10-G12-G14 2022"]
[Site "Luhacovice"]
[Date "2022.03.16"]
[Round "6.25"]
[White "Kavanova Valentyna"]
[Black "Archlebova Eva"]
[Result "1/2-1/2"]
[ECO "D06"]
[WhiteElo "1000"]
[BlackElo "1040"]
[Annotator "NA"]
[PlyCount "71"]
[EventDate "2022.03.12"]
[EventType "swiss"]
[EventCountry "CZE"]
[SourceTitle "playchess.com"]
[Source "ChessBase"]
[SourceQuality "1"]
[TimeControl "40/5400+30:1800+30"]

1. d4 {[%emt 0:00:11]} d5 {[%emt 0:00:30]} 2. c4 {[%emt 0:00:30]} Nf6 {[%emt 0:00:17]} 3. Nc3 {[%emt 0:00:36]} Bf5 {[%emt 0:00:16]} 4. Nf3 {[%emt 0:00:17]} e6 {[%emt 0:00:48]} 5. e3 {[%emt 0:00:06]} Bb4 {[%emt 0:00:37]} 6. Bd2 {[%emt 0:00:38]} Nc6 {[%emt 0:01:03]} 7. a3 {[%emt 0:01:02]} Ba5 {[%emt 0:00:21]} 8. b4 {[%emt 0:01:10]} Bb6 {[%emt 0:00:03]} 9. c5 {[%emt 0:00:08]} Bxc5 {[%emt 0:00:45]} 10. bxc5 {[%emt 0:01:18]} O-O {[%emt 0:00:07]} 11. Be2 {[%emt 0:04:01]} Re8 {[%emt 0:00:24]} 12. O-O {[%emt 0:03:25]} e5 {[%emt 0:00:06]} 13. Na2 {[%emt 0:00:52]} Qe7 {[%emt 0:05:42]} 14. Re1 {[%emt 0:00:42]} Ne4 {[%emt 0:01:24]} 15. Nb4 {[%emt 0:03:37]} Rad8 {[%emt 0:05:03]} 16. Nxc6 {[%emt 0:07:18]} bxc6 {[%emt 0:00:30]} 17. Bb4 {[%emt 0:00:30]} Ng5 {[%emt 0:00:30]} 18. Qa4 {[%emt 0:00:30]} Be4 {[%emt 0:01:25]} 19. Nxe5 {[%emt 0:02:51]} Qf6 {[%emt 0:00:54]} 20. Nxc6 {[%emt 0:06:33]} Qg6 {[%emt 0:02:52]} 21. g3 {[%emt 0:03:04]} Bc2 {[%emt 0:01:17]} 22. Qb5 {[%emt 0:09:04]} Qf6 {[%emt 0:00:31]} 23. Nxd8 {[%emt 0:02:18]} Nh3+ {[%emt 0:00:41]} 24. Kg2 {[%emt 0:00:19]} Qxf2+ {[%emt 0:02:58]} 25. Kxh3 {[%emt 0:04:32]} Bf5+ {[%emt 0:00:10]} 26. Bg4 {[%emt 0:00:12]} Bxg4+ {[%emt 0:02:37]} 27. Kxg4 {[%emt 0:00:06]} Re4+ {[%emt 0:00:05]} 28. Kh3 {[%emt 0:00:14]} h5 {[%emt 0:00:10]} 29. Qb8 {[%emt 0:00:44]} Kh7 {[%emt 0:04:32]} 30. Rf1 {[%emt 0:01:44]} Qxe3 {[%emt 0:01:23]} 31. Nxf7 {[%emt 0:03:47]} Rh4+ {[%emt 0:00:56]} 32. Kxh4 {[%emt 0:01:59]} Qe2 {[%emt 0:00:36]} 33. Qh8+ {[%emt 0:06:27]} Kg6 {[%emt 0:00:38]} 34. Ne5+ {[%emt 0:00:02]} Qxe5 {[%emt 0:02:08]} 35. dxe5 {[%emt 0:01:35]} c6 {[%emt 0:00:11]} 36. e6 {[%emt 0:00:13]} 1/2-1/2

[Event "CZE-ch Youth G10-G12-G14 2022"]
[Site "Luhacovice"]
[Date "2022.03.16"]
[Round "6.26"]
[White "Maresova Denisa"]
[Black "Archlebova Iva"]
[Result "0-1"]
[ECO "A29"]
[WhiteElo "1103"]
[BlackElo "1028"]
[Annotator "NA"]
[PlyCount "62"]
[EventDate "2022.03.12"]
[EventType "swiss"]
[EventCountry "CZE"]
[SourceTitle "playchess.com"]
[Source "ChessBase"]
[SourceQuality "1"]
[TimeControl "40/5400+30:1800+30"]

1. c4 {[%emt 0:00:05]} e5 {[%emt 0:00:26]} 2. Nc3 {[%emt 0:00:13]} Nf6 {[%emt 0:00:20]} 3. g3 {[%emt 0:00:27]} Bc5 {[%emt 0:00:53]} 4. Bg2 {[%emt 0:01:37]} O-O {[%emt 0:00:22]} 5. d3 {[%emt 0:02:27]} Nc6 {[%emt 0:00:55]} 6. Nf3 {[%emt 0:02:33]} d6 {[%emt 0:01:28]} 7. O-O {[%emt 0:01:55]} Bf5 {[%emt 0:00:46]} 8. a3 {[%emt 0:06:33]} h6 {[%emt 0:02:35]} 9. Rb1 {[%emt 0:01:36]} Qd7 {[%emt 0:02:45]} 10. b4 {[%emt 0:03:10]} Bd4 {[%emt 0:00:45]} 11. Nxd4 {[%emt 0:03:49]} exd4 {[%emt 0:00:29]} 12. Nd5 {[%emt 0:01:12]} Nxd5 {[%emt 0:01:39]} 13. Bxd5 {[%emt 0:00:56]} Bh3 {[%emt 0:01:15]} 14. Re1 {[%emt 0:02:08]} Qf5 {[%emt 0:00:33]} 15. b5 {[%emt 0:06:22]} Ne7 {[%emt 0:00:26]} 16. Bxb7 {[%emt 0:01:14]} Rab8 {[%emt 0:02:31]} 17. Bh1 {[%emt 0:00:56]} c6 {[%emt 0:01:27]} 18. Bf4 {[%emt 0:03:05]} Qc5 {[%emt 0:03:09]} 19. Qa4 {[%emt 0:05:01]} Ng6 {[%emt 0:04:49]} 20. Bd2 {[%emt 0:05:54]} Rfe8 {[%emt 0:06:36]} 21. Bf3 {[%emt 0:08:28]} Re5 {[%emt 0:05:32]} 22. Bxc6 {[%emt 0:05:26]} Rf5 {[%emt 0:11:50]} 23. Bd7 {[%emt 0:10:05]} Rh5 {[%emt 0:00:59]} 24. Bxh3 {[%emt 0:04:35]} Rxh3 {[%emt 0:00:37]} 25. Qb4 {[%emt 0:02:32]} Qb6 {[%emt 0:00:55]} 26. Qa5 {[%emt 0:00:52]} Qc5 {[%emt 0:00:56]} 27. e3 {[%emt 0:01:46]} Ne5 {[%emt 0:01:43]} 28. Kg2 {[%emt 0:03:57]} Rh5 {[%emt 0:03:55]} 29. Bb4 {[%emt 0:02:28]} Qc8 {[%emt 0:00:58]} 30. h3 {[%emt 0:06:20]} Qxh3+ {[%emt 0:00:38]} 31. Kg1 {[%emt 0:01:46]} Nf3# {[%emt 0:00:30]} 0-1

[Event "CZE-ch Youth G10-G12-G14 2022"]
[Site "Luhacovice"]
[Date "2022.03.16"]
[Round "6.27"]
[White "Martinkovicova Nela"]
[Black "Souralova, Alena"]
[Result "0-1"]
[ECO "C29"]
[WhiteElo "1032"]
[BlackElo "1010"]
[Annotator "NA"]
[PlyCount "124"]
[EventDate "2022.03.12"]
[EventType "swiss"]
[EventCountry "CZE"]
[SourceTitle "playchess.com"]
[Source "ChessBase"]
[SourceQuality "1"]
[TimeControl "40/5400+30:1800+30"]

1. e4 {[%emt 0:00:04]} e5 {[%emt 0:06:43]} 2. Nc3 {[%emt 0:07:03]} Nf6 {[%emt 0:00:30]} 3. f4 {[%emt 0:00:30]} d5 {[%emt 0:00:30]} 4. d4 {[%emt 0:00:30]} exf4 {[%emt 0:03:34]} 5. e5 {[%emt 0:10:51]} Ne4 {[%emt 0:00:30]} 6. Nf3 {[%emt 0:00:30]} Bb4 {[%emt 0:04:09]} 7. Bd2 {[%emt 0:16:47]} Bg4 {[%emt 0:00:30]} 8. Be2 {[%emt 0:00:30]} Bxf3 {[%emt 0:00:30]} 9. Bxf3 {[%emt 0:00:30]} Qh4+ {[%emt 0:00:30]} 10. g3 {[%emt 0:00:30]} fxg3 {[%emt 0:00:30]} 11. hxg3 {[%emt 0:00:30]} Qxg3+ {[%emt 0:00:30]} 12. Ke2 {[%emt 0:00:30]} Qf2+ {[%emt 0:00:30]} 13. Kd3 {[%emt 0:00:30]} Nc6 {[%emt 0:04:29]} 14. Qf1 {[%emt 0:06:49]} Qxd4+ {[%emt 0:00:30]} 15. Ke2 {[%emt 0:00:30]} Ng3+ {[%emt 0:00:53]} 16. Kd1 {[%emt 0:02:04]} Nxf1 {[%emt 0:00:30]} 17. Rxf1 {[%emt 0:00:30]} O-O-O {[%emt 0:00:30]} 18. Re1 {[%emt 0:01:37]} Bxc3 {[%emt 0:01:05]} 19. bxc3 {[%emt 0:02:55]} Rhe8 {[%emt 0:00:30]} 20. cxd4 {[%emt 0:00:30]} Nxd4 {[%emt 0:00:30]} 21. Bg4+ {[%emt 0:00:30]} Kb8 {[%emt 0:00:30]} 22. Bc3 {[%emt 0:00:30]} Nc6 {[%emt 0:00:30]} 23. e6 {[%emt 0:00:24]} fxe6 {[%emt 0:02:06]} 24. Bxe6 {[%emt 0:04:12]} d4 {[%emt 0:00:00]} 25. Bd2 {[%emt 0:00:27]} d3 {[%emt 0:00:00]} 26. c3 {[%emt 0:00:30]} Rd6 {[%emt 0:00:21]} 27. Bf7 {[%emt 0:00:30]} Rxe1+ {[%emt 0:00:30]} 28. Kxe1 {[%emt 0:00:30]} Rf6 {[%emt 0:00:30]} 29. Bc4 {[%emt 0:00:30]} Ne5 {[%emt 0:00:30]} 30. Bb3 {[%emt 0:00:30]} h5 {[%emt 0:00:30]} 31. Bg5 {[%emt 0:00:30]} Rf5 {[%emt 0:00:30]} 32. Bh4 {[%emt 0:00:30]} Nf3+ {[%emt 0:00:30]} 33. Kd1 {[%emt 0:00:30]} Nxh4 {[%emt 0:00:30]} 34. Kd2 {[%emt 0:00:30]} c6 {[%emt 0:00:30]} 35. Kxd3 {[%emt 0:00:30]} Kc7 {[%emt 0:00:30]} 36. Be6 {[%emt 0:00:30]} Re5 {[%emt 0:00:30]} 37. Bf7 {[%emt 0:00:30]} Kd6 {[%emt 0:00:30]} 38. Rf1 {[%emt 0:00:30]} Rf5 {[%emt 0:00:30]} 39. Rxf5 {[%emt 0:00:30]} Nxf5 {[%emt 0:00:30]} 40. Bxh5 {[%emt 0:00:30]} Ke5 {[%emt 0:00:30]} 41. c4 {[%emt 0:30:30]} Kf4 {[%emt 0:30:30]} 42. Ke2 {[%emt 0:00:30]} Ng3+ {[%emt 0:00:30]} 43. Kf2 {[%emt 0:00:30]} Nxh5 {[%emt 0:00:30]} 44. a4 {[%emt 0:00:30]} b6 {[%emt 0:00:30]} 45. Kg2 {[%emt 0:00:30]} Nf6 {[%emt 0:00:30]} 46. Kf2 {[%emt 0:00:30]} g5 {[%emt 0:00:30]} 47. Kg2 {[%emt 0:00:30]} Ne4 {[%emt 0:00:30]} 48. Kg1 {[%emt 0:00:30]} c5 {[%emt 0:00:30]} 49. Kg2 {[%emt 0:00:30]} Nd2 {[%emt 0:00:30]} 50. a5 {[%emt 0:00:30]} Nxc4 {[%emt 0:00:30]} 51. a6 {[%emt 0:00:30]} Ne3+ {[%emt 0:00:30]} 52. Kg1 {[%emt 0:00:30]} c4 {[%emt 0:00:30]} 53. Kf2 {[%emt 0:00:30]} c3 {[%emt 0:00:30]} 54. Ke2 {[%emt 0:00:30]} c2 {[%emt 0:00:30]} 55. Kd2 {[%emt 0:00:30]} g4 {[%emt 0:00:30]} 56. Kc1 {[%emt 0:00:30]} g3 {[%emt 0:00:30]} 57. Kb2 {[%emt 0:00:30]} g2 {[%emt 0:00:30]} 58. Kc3 {[%emt 0:00:30]} c1=Q+ {[%emt 0:00:30]} 59. Kb3 {[%emt 0:00:30]} Qc4+ {[%emt 0:00:30]} 60. Kb2 {[%emt 0:00:30]} Nd1+ {[%emt 0:00:30]} 61. Ka3 {[%emt 0:00:30]} Qb5 {[%emt 0:00:30]} 62. Ka2 {[%emt 0:00:30]} Qb2# {[%emt 0:00:30]} 0-1

[Event "CZE-ch Youth G10-G12-G14 2022"]
[Site "Luhacovice"]
[Date "2022.03.16"]
[Round "6.28"]
[White "Spetlova Stella"]
[Black "Zezulova Sara"]
[Result "1/2-1/2"]
[ECO "C45"]
[WhiteElo "1000"]
[BlackElo "1000"]
[Annotator "NA"]
[PlyCount "58"]
[EventDate "2022.03.12"]
[EventType "swiss"]
[EventCountry "CZE"]
[SourceTitle "playchess.com"]
[Source "ChessBase"]
[SourceQuality "1"]
[TimeControl "40/5400+30:1800+30"]

1. e4 {[%emt 0:00:07]} e5 {[%emt 0:00:11]} 2. Nf3 {[%emt 0:00:37]} Nc6 {[%emt 0:00:27]} 3. d4 {[%emt 0:01:18]} exd4 {[%emt 0:00:49]} 4. Nxd4 {[%emt 0:00:36]} Qh4 {[%emt 0:01:06]} 5. Nc3 {[%emt 0:07:22]} Bb4 {[%emt 0:02:33]} 6. Qd3 {[%emt 0:25:32]} Nf6 {[%emt 0:04:51]} 7. Nxc6 {[%emt 0:13:46]} dxc6 {[%emt 0:04:26]} 8. Bd2 {[%emt 0:06:18]} O-O {[%emt 0:04:51]} 9. Qg3 {[%emt 0:09:43]} Qxg3 {[%emt 0:04:45]} 10. hxg3 {[%emt 0:01:00]} Re8 {[%emt 0:03:28]} 11. f3 {[%emt 0:04:06]} Be6 {[%emt 0:05:36]} 12. O-O-O {[%emt 0:01:37]} Rad8 {[%emt 0:03:15]} 13. Bd3 {[%emt 0:01:37]} Bxc3 {[%emt 0:03:55]} 14. Bxc3 {[%emt 0:00:20]} h6 {[%emt 0:02:46]} 15. e5 {[%emt 0:02:06]} Nd5 {[%emt 0:03:54]} 16. Bd2 {[%emt 0:01:31]} f5 {[%emt 0:03:29]} 17. exf6 {[%emt 0:01:04]} Nxf6 {[%emt 0:05:48]} 18. Rde1 {[%emt 0:02:46]} Bxa2 {[%emt 0:02:40]} 19. b3 {[%emt 0:00:26]} Rxe1+ {[%emt 0:02:13]} 20. Rxe1 {[%emt 0:00:12]} Re8 {[%emt 0:01:09]} 21. Rxe8+ {[%emt 0:00:16]} Nxe8 {[%emt 0:00:24]} 22. Kb2 {[%emt 0:00:15]} Bxb3 {[%emt 0:00:48]} 23. cxb3 {[%emt 0:00:10]} Nf6 {[%emt 0:00:38]} 24. Bc4+ {[%emt 0:00:13]} Kf8 {[%emt 0:00:09]} 25. g4 {[%emt 0:00:49]} b6 {[%emt 0:00:39]} 26. Ba6 {[%emt 0:00:48]} Ke8 {[%emt 0:01:18]} 27. Bf4 {[%emt 0:00:46]} Nd5 {[%emt 0:00:53]} 28. Bd2 {[%emt 0:00:23]} c5 {[%emt 0:03:19]} 29. Bc4 {[%emt 0:00:30]} c6 {[%emt 0:00:30]} 1/2-1/2

[Event "CZE-ch Youth G10-G12-G14 2022"]
[Site "Luhacovice"]
[Date "2022.03.16"]
[Round "6.29"]
[White "Rybackova, Lucie"]
[Black "Mikesova, Lenka"]
[Result "1-0"]
[ECO "A20"]
[WhiteElo "1612"]
[BlackElo "1364"]
[Annotator "NA"]
[PlyCount "73"]
[EventDate "2022.03.12"]
[EventType "swiss"]
[EventCountry "CZE"]
[SourceTitle "playchess.com"]
[Source "ChessBase"]
[SourceQuality "1"]
[TimeControl "40/5400+30:1800+30"]

1. c4 {[%emt 0:00:12]} e5 {[%emt 0:02:01]} 2. g3 {[%emt 0:00:44]} Bc5 {[%emt 0:01:28]} 3. Bg2 {[%emt 0:01:47]} d6 {[%emt 0:01:44]} 4. e3 {[%emt 0:02:17]} Nf6 {[%emt 0:01:12]} 5. Ne2 {[%emt 0:01:01]} O-O {[%emt 0:01:27]} 6. O-O {[%emt 0:03:21]} c6 {[%emt 0:07:55]} 7. d4 {[%emt 0:05:31]} exd4 {[%emt 0:04:44]} 8. exd4 {[%emt 0:02:41]} Bb6 {[%emt 0:02:50]} 9. Nbc3 {[%emt 0:01:30]} Bf5 {[%emt 0:03:09]} 10. b4 {[%emt 0:24:46]} Nbd7 {[%emt 0:08:51]} 11. Bb2 {[%emt 0:07:26]} Re8 {[%emt 0:04:12]} 12. Nf4 {[%emt 0:11:49]} h6 {[%emt 0:06:46]} 13. Qd2 {[%emt 0:07:27]} Ne4 {[%emt 0:03:36]} 14. Nxe4 {[%emt 0:04:08]} Bxe4 {[%emt 0:00:20]} 15. d5 {[%emt 0:04:33]} Bxg2 {[%emt 0:02:17]} 16. Kxg2 {[%emt 0:00:30]} Nf6 {[%emt 0:02:58]} 17. Qc3 {[%emt 0:01:53]} Re4 {[%emt 0:04:20]} 18. Qd3 {[%emt 0:03:15]} Rxf4 {[%emt 0:03:33]} 19. gxf4 {[%emt 0:01:47]} Nh5 {[%emt 0:02:45]} 20. Kh1 {[%emt 0:03:14]} Qh4 {[%emt 0:05:48]} 21. Qf3 {[%emt 0:00:57]} Nxf4 {[%emt 0:01:47]} 22. Qg3 {[%emt 0:02:27]} Qxg3 {[%emt 0:01:05]} 23. fxg3 {[%emt 0:00:12]} Nd3 {[%emt 0:00:37]} 24. Bc3 {[%emt 0:00:42]} cxd5 {[%emt 0:00:53]} 25. cxd5 {[%emt 0:00:28]} Rc8 {[%emt 0:00:46]} 26. Be1 {[%emt 0:01:13]} Rc2 {[%emt 0:01:01]} 27. Rd1 {[%emt 0:00:31]} Nf2+ {[%emt 0:03:31]} 28. Bxf2 {[%emt 0:00:11]} Bxf2 {[%emt 0:00:21]} 29. a4 {[%emt 0:00:35]} Kh7 {[%emt 0:03:21]} 30. Rc1 {[%emt 0:00:16]} Rd2 {[%emt 0:05:39]} 31. Rc7 {[%emt 0:01:08]} b5 {[%emt 0:03:45]} 32. Rxf7 {[%emt 0:01:10]} Bd4 {[%emt 0:01:01]} 33. axb5 {[%emt 0:00:46]} Kg6 {[%emt 0:00:38]} 34. Rd7 {[%emt 0:00:54]} Be3 {[%emt 0:01:39]} 35. Rxd6+ {[%emt 0:00:42]} Kg5 {[%emt 0:00:24]} 36. Re6 {[%emt 0:01:40]} Re2 {[%emt 0:03:09]} 37. Re4 {[%emt 0:01:59]} 1-0

[Event "CZE-ch Youth G10-G12-G14 2022"]
[Site "Luhacovice"]
[Date "2022.03.16"]
[Round "6.30"]
[White "Dobsa, Emma"]
[Black "Sikorova, Jana"]
[Result "1-0"]
[ECO "B42"]
[WhiteElo "1425"]
[BlackElo "1427"]
[Annotator "NA"]
[PlyCount "59"]
[EventDate "2022.03.12"]
[EventType "swiss"]
[EventCountry "CZE"]
[SourceTitle "playchess.com"]
[Source "ChessBase"]
[SourceQuality "1"]
[TimeControl "40/5400+30:1800+30"]

1. e4 {[%emt 0:00:55]} c5 {[%emt 0:00:18]} 2. Nf3 {[%emt 0:00:15]} e6 {[%emt 0:00:10]} 3. d4 {[%emt 0:00:04]} cxd4 {[%emt 0:00:15]} 4. Nxd4 {[%emt 0:00:22]} a6 {[%emt 0:00:10]} 5. c4 {[%emt 0:00:29]} Nf6 {[%emt 0:01:28]} 6. Nc3 {[%emt 0:00:23]} Qc7 {[%emt 0:01:20]} 7. Be3 {[%emt 0:01:45]} b6 {[%emt 0:01:09]} 8. Bd3 {[%emt 0:00:09]} Bb7 {[%emt 0:00:53]} 9. O-O {[%emt 0:00:33]} d6 {[%emt 0:00:49]} 10. Rc1 {[%emt 0:00:19]} Be7 {[%emt 0:01:14]} 11. f4 {[%emt 0:00:52]} Nbd7 {[%emt 0:01:25]} 12. b4 {[%emt 0:00:11]} O-O {[%emt 0:01:05]} 13. g4 {[%emt 0:00:18]} d5 {[%emt 0:16:44]} 14. cxd5 {[%emt 0:14:24]} exd5 {[%emt 0:10:25]} 15. g5 {[%emt 0:12:46]} Ne8 {[%emt 0:02:53]} 16. Nxd5 {[%emt 0:01:16]} Qd8 {[%emt 0:01:13]} 17. Nc6 {[%emt 0:03:30]} Bxc6 {[%emt 0:04:51]} 18. Rxc6 {[%emt 0:00:09]} Nd6 {[%emt 0:13:25]} 19. e5 {[%emt 0:06:05]} Nb5 {[%emt 0:06:37]} 20. Qg4 {[%emt 0:03:22]} Re8 {[%emt 0:04:00]} 21. Rf3 {[%emt 0:15:14]} g6 {[%emt 0:09:18]} 22. Rh3 {[%emt 0:09:07]} Nf8 {[%emt 0:04:04]} 23. Bc4 {[%emt 0:09:56]} Na3 {[%emt 0:07:01]} 24. Bb3 {[%emt 0:03:28]} Nb5 {[%emt 0:04:28]} 25. Qh4 {[%emt 0:02:17]} Rc8 {[%emt 0:00:45]} 26. Rxg6+ {[%emt 0:07:41]} fxg6 {[%emt 0:01:30]} 27. Nf6+ {[%emt 0:00:16]} Kg7 {[%emt 0:00:33]} 28. Qh6+ {[%emt 0:00:21]} Kh8 {[%emt 0:00:17]} 29. Qxh7+ {[%emt 0:00:24]} Nxh7 {[%emt 0:00:09]} 30. Rxh7# {[%emt 0:00:05]} 1-0

[Event "CZE-ch Youth G10-G12-G14 2022"]
[Site "Luhacovice"]
[Date "2022.03.16"]
[Round "6.31"]
[White "Hetfleischova, Elen"]
[Black "Barteckova, Denisa"]
[Result "0-1"]
[ECO "C01"]
[WhiteElo "1363"]
[BlackElo "1323"]
[Annotator "NA"]
[PlyCount "60"]
[EventDate "2022.03.12"]
[EventType "swiss"]
[EventCountry "CZE"]
[SourceTitle "playchess.com"]
[Source "ChessBase"]
[SourceQuality "1"]
[TimeControl "40/5400+30:1800+30"]

1. e4 {[%emt 0:00:15]} e6 {[%emt 0:00:05]} 2. d4 {[%emt 0:00:20]} d5 {[%emt 0:00:06]} 3. exd5 {[%emt 0:00:07]} exd5 {[%emt 0:00:06]} 4. Nc3 {[%emt 0:00:12]} Nf6 {[%emt 0:00:09]} 5. Nf3 {[%emt 0:00:36]} Be7 {[%emt 0:00:48]} 6. Bd3 {[%emt 0:00:15]} Nbd7 {[%emt 0:01:55]} 7. Bf4 {[%emt 0:01:19]} c6 {[%emt 0:03:29]} 8. O-O {[%emt 0:01:01]} O-O {[%emt 0:01:39]} 9. Qd2 {[%emt 0:03:49]} Nh5 {[%emt 0:15:35]} 10. Bg5 {[%emt 0:12:46]} Bxg5 {[%emt 0:07:30]} 11. Nxg5 {[%emt 0:00:34]} Ndf6 {[%emt 0:02:44]} 12. h3 {[%emt 0:01:14]} g6 {[%emt 0:00:27]} 13. Rae1 {[%emt 0:08:18]} Ng7 {[%emt 0:04:14]} 14. Qf4 {[%emt 0:04:11]} Ne6 {[%emt 0:05:18]} 15. Nxe6 {[%emt 0:06:13]} Bxe6 {[%emt 0:00:21]} 16. Re3 {[%emt 0:00:40]} Nh5 {[%emt 0:02:50]} 17. Qh6 {[%emt 0:04:57]} Qb6 {[%emt 0:08:08]} 18. g4 {[%emt 0:12:19]} Ng7 {[%emt 0:00:32]} 19. f4 {[%emt 0:11:10]} f5 {[%emt 0:06:20]} 20. Rxe6 {[%emt 0:08:26]} Qxd4+ {[%emt 0:01:17]} 21. Kh1 {[%emt 0:00:16]} Nxe6 {[%emt 0:00:52]} 22. gxf5 {[%emt 0:00:38]} Qg7 {[%emt 0:06:05]} 23. Qxg7+ {[%emt 0:00:26]} Nxg7 {[%emt 0:00:18]} 24. fxg6 {[%emt 0:00:13]} hxg6 {[%emt 0:00:07]} 25. Bxg6 {[%emt 0:00:08]} Rf6 {[%emt 0:00:19]} 26. f5 {[%emt 0:00:29]} Raf8 {[%emt 0:00:26]} 27. Rg1 {[%emt 0:01:17]} Kh8 {[%emt 0:00:28]} 28. Rg5 {[%emt 0:02:05]} Nxf5 {[%emt 0:00:47]} 29. Bxf5 {[%emt 0:00:43]} Rxf5 {[%emt 0:00:14]} 30. Rg1 {[%emt 0:01:03]} Rf1 {[%emt 0:00:17]} 0-1